Workbook

Sheet Cover
A3: Navigator
C5: =Client_Name -> SumProduct Pty Limited
C6: =Model_Name -> SP Example Export Model.xlsm
C14: Primary Developer: Liam Bastick
C16: General Cover Notes:
C17: Simple template to agree layouts, formats and styles.
C21: Any queries, please e-mail: | G21: liam.bastick@sumproduct.com
C22: Website: | G22: www.sumproduct.com

Sheet Navigator
A1: Navigator
A2: =Model_Name -> SP Example Export Model.xlsm
A3: Navigator
E4: Error Checks: | G4: =Overall_Error_Check -> 0
B7: 1 | C7: Table of Contents
F9: Cover
F10: Style Guide
F11: Model Parameters
F12: Timing
F13: Error Checks
F14: Change Log

Sheet Style Guide
A1: =IF(ISERROR(RIGHT(CELL("filename",A1),LEN(CELL("filename",A1))-FIND("]",CELL("filename",A1)))), "", RIGHT(CELL("filename",A1),LEN(CELL("filename",A1))-FIND("]",CELL("filename",A1)))) -> Style Guide
A2: =Model_Name -> SP Example Export Model.xlsm
A3: Navigator
E4: Error Checks: | I4: =Overall_Error_Check -> 0
B6: =MAX($B$5:$B5)+1 -> 1 | C6: Formatting of Headers / Dividers
C8: Description | I8: Display | K8: Style Name
C10: Sheet Title | I10: =C10 -> Sheet Title | K10: Sheet Title
C11: Model Name | I11: =C11 -> Model Name | K11: Model Name
C13: Header 1 | I13: =C13 -> Header 1 | K13: Header 1
C14: Header 2 | I14: =C14 -> Header 2 | K14: Header 2
C15: Header 3 | I15: =C15 -> Header 3 | K15: Header 3
C16: Header 4 | I16: =C16 -> Header 4 | K16: Header 4
C18: Notes | I18: =C18 -> Notes | K18: Notes
C20: Table Heading | I20: =C20 -> Table Heading | K20: Table Heading
B23: =MAX($B$5:$B22)+1 -> 2 | C23: Individual Cell Styles
C25: Description | I25: Display | K25: Style Name
C27: Assumption | I27: Assumption | K27: =C27 -> Assumption
C29: Constraint | I29: =C29 -> Constraint | K29: =C29 -> Constraint
C31: Empty | K31: =C31 -> Empty
C33: Error Check | I33: 0 | K33: =C33 -> Error Check
C35: Hyperlink | I35: Hyperlink | K35: =C35 -> Hyperlink
C37: Internal Reference | I37: ='Error Checks'!E12 -> Example | K37: =C37 -> Internal Reference
C39: Line Calculation | I39: 77 | K39: Line Calc
C41: Line Total | I41: =I39 -> 77 | K41: =C41 -> Line Total
C43: Parameter | I43: 365 | K43: =C43 -> Parameter
C45: Range Name Description | I45: Not_Named | K45: =C45 -> Range Name Description
C47: Row Reference | I47: =ROW(C47) -> 47 | K47: Row Ref
C49: Row Summary | I49: =I41 -> 77 | K49: =C49 -> Row Summary
C51: Units | I51: A$ | K51: =C51 -> Units
C53: WIP | K53: =C53 -> WIP
B56: =MAX($B$5:$B55)+1 -> 3 | C56: Numerical Styles
C58: Description | I58: Display | K58: Style Name
C60: Comma | I60: 123456.789 | K60: =C60 -> Comma
C62: Comma [0] | I62: -123456.789 | K62: Comma [0]
C64: Currency | I64: 123456.789 | K64: Currency
C66: Currency [0] | I66: 123456.789 | K66: Currency [0]
C68: Date | I68: =TODAY() -> 2018-02-25 | K68: =C68 -> Date
C70: Date Heading | I70: =TODAY() -> 2018-02-25 | K70: =C70 -> Date Heading
C72: Numbers 0 | I72: -123456.789 | K72: =C72 -> Numbers 0
C74: Percent | I74: 0.5 | K74: =C74 -> Percent

Sheet Model Parameters
A1: =IF(ISERROR(RIGHT(CELL("filename",A1),LEN(CELL("filename",A1))-FIND("]",CELL("filename",A1)))), "", RIGHT(CELL("filename",A1),LEN(CELL("filename",A1))-FIND("]",CELL("filename",A1)))) -> Model Parameters
A2: =Model_Name -> SP Example Export Model.xlsm
A3: Navigator
E4: Error Checks: | I4: =Overall_Error_Check -> 0
B6: =MAX($B$5:$B5)+1 -> 1 | C6: General
C8: Key Inputs
E10: General
E11: Model Name | G11: =IF(ISERROR(OR(FIND("[",CELL("filename",A1)),FIND("]",CELL("filename",A1)))),"",MID(CELL("filename",A1),FIND("[",CELL("filename",A1))+1,FIND("]",CELL("filename",A1))-FIND("[",CELL("filename",A1))-1)) -> SP Example Export Model.xlsm
E12: Client Name | G12: SumProduct Pty Limited
B15: =MAX($B$5:$B14)+1 -> 2 | C15: General Range Names
C17: Technical Assumptions
E19: Days in Year | G19: 365
E20: Months in Month | G20: 1
E21: Months in Quarter | G21: 3
E22: Months in Half Yr | G22: 6
E23: Months in Year | G23: 12
E24: Quarters in Year | G24: 4
E26: Rounding Accuracy | G26: 5
E28: Very Large Number | G28: 1e+99
E29: Very Small Number | G29: 1e-08
E31: Thousand | G31: 1000

Sheet Timing
A1: =IF(ISERROR(RIGHT(CELL("filename",A1),LEN(CELL("filename",A1))-FIND("]",CELL("filename",A1)))), "", RIGHT(CELL("filename",A1),LEN(CELL("filename",A1))-FIND("]",CELL("filename",A1)))) -> Timing
A2: =Model_Name -> SP Example Export Model.xlsm
A3: Navigator
B4: Error Checks: | F4: =Overall_Error_Check -> 0
J5: =J$7 -> 2018-03-31 | K5: =K$7 -> 2018-06-30 | L5: =L$7 -> 2018-09-30 | M5: =M$7 -> 2018-12-31 | N5: =N$7 -> 2019-03-31
C6: Start Date | J6: =IF(J$9=1,Model_Start_Date,I$7+1) -> 2018-02-25 | K6: =IF(K$9=1,Model_Start_Date,J$7+1) -> 2018-04-01 | L6: =IF(L$9=1,Model_Start_Date,K$7+1) -> 2018-07-01 | M6: =IF(M$9=1,Model_Start_Date,L$7+1) -> 2018-10-01 | N6: =IF(N$9=1,Model_Start_Date,M$7+1) -> 2019-01-01
C7: End Date | J7: =EOMONTH(J$6,MOD(Periodicity+Reporting_Month_Factor-MONTH(J$6),Periodicity)) -> 2018-03-31 | K7: =EOMONTH(K$6,MOD(Periodicity+Reporting_Month_Factor-MONTH(K$6),Periodicity)) -> 2018-06-30 | L7: =EOMONTH(L$6,MOD(Periodicity+Reporting_Month_Factor-MONTH(L$6),Periodicity)) -> 2018-09-30 | M7: =EOMONTH(M$6,MOD(Periodicity+Reporting_Month_Factor-MONTH(M$6),Periodicity)) -> 2018-12-31 | N7: =EOMONTH(N$6,MOD(Periodicity+Reporting_Month_Factor-MONTH(N$6),Periodicity)) -> 2019-03-31
C8: Number of Days | J8: =J7-J6+1 -> 35 | K8: =K7-K6+1 -> 91 | L8: 92 | M8: 92 | N8: 90
C9: Counter | J9: =N(I$9)+1 -> 1 | K9: =N(J$9)+1 -> 2 | L9: 3 | M9: 4 | N9: 5
B11: =MAX($B$10:$B10)+1 -> 1 | C11: Timing Assumptions
C13: Data (do not change once modelling has commenced)
D15: Model Start Date | H15: =TODAY() -> 2018-02-25
D17: Number of Months in a Full Period | H17: 3
D19: Example Reporting Month | H19: 12 | I19: ="e.g. "&TEXT(DATE(YEAR(Model_Start_Date)+IF(Example_Reporting_Month<MONTH(Model_Start_Date),1,0),Example_Reporting_Month+1,1)-1,"dd-Mmm-yy") -> e.g. 31-Dec-18
D21: Reporting Month Factor | H21: =MOD(Example_Reporting_Month-1,Periodicity)+1 -> 3
D23: Months per Year | H23: 12

Sheet Revenues
A1: =IF(ISERROR(RIGHT(CELL("filename",A1),LEN(CELL("filename",A1))-FIND("]",CELL("filename",A1)))), "", RIGHT(CELL("filename",A1),LEN(CELL("filename",A1))-FIND("]",CELL("filename",A1)))) -> Revenues
A2: =Model_Name -> SP Example Export Model.xlsm
A3: Navigator
B4: Error Checks: | F4: =Overall_Error_Check -> 0
J5: =Timing!J5 -> 2018-03-31 | K5: =Timing!K5 -> 2018-06-30 | L5: =Timing!L5 -> 2018-09-30 | M5: =Timing!M5 -> 2018-12-31 | N5: =Timing!N5 -> 2019-03-31
C6: =Timing!C6 -> Start Date | J6: =Timing!J6 -> 2018-02-25 | K6: =Timing!K6 -> 2018-04-01 | L6: =Timing!L6 -> 2018-07-01 | M6: =Timing!M6 -> 2018-10-01 | N6: =Timing!N6 -> 2019-01-01
C7: =Timing!C7 -> End Date | J7: =Timing!J7 -> 2018-03-31 | K7: =Timing!K7 -> 2018-06-30 | L7: =Timing!L7 -> 2018-09-30 | M7: =Timing!M7 -> 2018-12-31 | N7: =Timing!N7 -> 2019-03-31
C8: =Timing!C8 -> Number of Days | J8: =Timing!J8 -> 35 | K8: =Timing!K8 -> 91 | L8: =Timing!L8 -> 92 | M8: =Timing!M8 -> 92 | N8: =Timing!N8 -> 90
C9: =Timing!C9 -> Counter | J9: =Timing!J9 -> 1 | K9: =Timing!K9 -> 2 | L9: =Timing!L9 -> 3 | M9: =Timing!M9 -> 4 | N9: =Timing!N9 -> 5
B11: =MAX($B$10:$B10)+1 -> 1 | C11: =A1 -> Revenues
C13: Heading
D15: Sub Heading
F25: Guns | G25: $'000 | J25: 183 | K25: 780 | L25: 866 | M25: 355 | N25: 797
F26: Drugs | G26: $'000 | J26: 685 | K26: 131 | L26: 998 | M26: 203 | N26: 333
F27: Roses | G27: $'000 | J27: 514 | K27: 452 | L27: 368 | M27: 897 | N27: 418
G28: $'000 | J28: =SUM(J25:J27) -> 1382 | K28: =SUM(K25:K27) -> 1363 | L28: 2232 | M28: 1455 | N28: 1548

Sheet COGS
A1: =IF(ISERROR(RIGHT(CELL("filename",A1),LEN(CELL("filename",A1))-FIND("]",CELL("filename",A1)))), "", RIGHT(CELL("filename",A1),LEN(CELL("filename",A1))-FIND("]",CELL("filename",A1)))) -> COGS
A2: =Model_Name -> SP Example Export Model.xlsm
A3: Navigator
B4: Error Checks: | F4: =Overall_Error_Check -> 0
J5: =Timing!J5 -> 2018-03-31 | K5: =Timing!K5 -> 2018-06-30 | L5: =Timing!L5 -> 2018-09-30 | M5: =Timing!M5 -> 2018-12-31 | N5: =Timing!N5 -> 2019-03-31
C6: =Timing!C6 -> Start Date | J6: =Timing!J6 -> 2018-02-25 | K6: =Timing!K6 -> 2018-04-01 | L6: =Timing!L6 -> 2018-07-01 | M6: =Timing!M6 -> 2018-10-01 | N6: =Timing!N6 -> 2019-01-01
C7: =Timing!C7 -> End Date | J7: =Timing!J7 -> 2018-03-31 | K7: =Timing!K7 -> 2018-06-30 | L7: =Timing!L7 -> 2018-09-30 | M7: =Timing!M7 -> 2018-12-31 | N7: =Timing!N7 -> 2019-03-31
C8: =Timing!C8 -> Number of Days | J8: =Timing!J8 -> 35 | K8: =Timing!K8 -> 91 | L8: =Timing!L8 -> 92 | M8: =Timing!M8 -> 92 | N8: =Timing!N8 -> 90
C9: =Timing!C9 -> Counter | J9: =Timing!J9 -> 1 | K9: =Timing!K9 -> 2 | L9: =Timing!L9 -> 3 | M9: =Timing!M9 -> 4 | N9: =Timing!N9 -> 5
B11: =MAX($B$10:$B10)+1 -> 1 | C11: =A1 -> COGS
C13: Heading
D15: Sub Heading
F69: Direct Materials | G69: $'000 | J69: 54 | K69: 560 | L69: 447 | M69: 434 | N69: 165
F70: Direct Labour | G70: $'000 | J70: 393 | K70: 457 | L70: 484 | M70: 329 | N70: 95
F71: Other | G71: $'000 | J71: 180 | K71: 471 | L71: 519 | M71: 430 | N71: 75
G72: $'000 | J72: =SUM(J69:J71) -> 627 | K72: =SUM(K69:K71) -> 1488 | L72: =SUM(L69:L71) -> 1450 | M72: =SUM(M69:M71) -> 1193 | N72: =SUM(N69:N71) -> 335

Sheet Capex
A1: =IF(ISERROR(RIGHT(CELL("filename",A1),LEN(CELL("filename",A1))-FIND("]",CELL("filename",A1)))), "", RIGHT(CELL("filename",A1),LEN(CELL("filename",A1))-FIND("]",CELL("filename",A1)))) -> Capex
A2: =Model_Name -> SP Example Export Model.xlsm
A3: Navigator
B4: Error Checks: | F4: =Overall_Error_Check -> 0
J5: =Timing!J5 -> 2018-03-31 | K5: =Timing!K5 -> 2018-06-30 | L5: =Timing!L5 -> 2018-09-30 | M5: =Timing!M5 -> 2018-12-31 | N5: =Timing!N5 -> 2019-03-31
C6: =Timing!C6 -> Start Date | J6: =Timing!J6 -> 2018-02-25 | K6: =Timing!K6 -> 2018-04-01 | L6: =Timing!L6 -> 2018-07-01 | M6: =Timing!M6 -> 2018-10-01 | N6: =Timing!N6 -> 2019-01-01
C7: =Timing!C7 -> End Date | J7: =Timing!J7 -> 2018-03-31 | K7: =Timing!K7 -> 2018-06-30 | L7: =Timing!L7 -> 2018-09-30 | M7: =Timing!M7 -> 2018-12-31 | N7: =Timing!N7 -> 2019-03-31
C8: =Timing!C8 -> Number of Days | J8: =Timing!J8 -> 35 | K8: =Timing!K8 -> 91 | L8: =Timing!L8 -> 92 | M8: =Timing!M8 -> 92 | N8: =Timing!N8 -> 90
C9: =Timing!C9 -> Counter | J9: =Timing!J9 -> 1 | K9: =Timing!K9 -> 2 | L9: =Timing!L9 -> 3 | M9: =Timing!M9 -> 4 | N9: =Timing!N9 -> 5
B11: =MAX($B$10:$B10)+1 -> 1 | C11: =A1 -> Capex
C13: Heading
D15: Sub Heading
F121: Office Furniture | G121: $'000 | J121: 549 | K121: 383 | L121: 596 | M121: 638 | N121: 655
F122: Laptops | G122: $'000 | J122: 556 | K122: 321 | L122: 434 | M122: 537 | N122: 248
F123: All Terrain Vehicles | G123: $'000 | J123: 299 | K123: 172 | L123: 537 | M123: 445 | N123: 558
F124: Bullet Proof Shielding | G124: $'000 | J124: 551 | K124: 143 | L124: 337 | M124: 189 | N124: 460
G125: $'000 | J125: =SUM(J121:J124) -> 1955 | K125: =SUM(K122:K124) -> 636 | L125: =SUM(L122:L124) -> 1308 | M125: =SUM(M122:M124) -> 1171 | N125: =SUM(N122:N124) -> 1266

Sheet Export Sheet
A1: =IF(ISERROR(RIGHT(CELL("filename",A1),LEN(CELL("filename",A1))-FIND("]",CELL("filename",A1)))), "", RIGHT(CELL("filename",A1),LEN(CELL("filename",A1))-FIND("]",CELL("filename",A1)))) -> Export Sheet
A2: =Model_Name -> SP Example Export Model.xlsm
B4: Error Checks: | G4: =Overall_Error_Check -> 0
J5: =Timing!J5 -> 2018-03-31 | K5: =Timing!K5 -> 2018-06-30 | L5: =Timing!L5 -> 2018-09-30 | M5: =Timing!M5 -> 2018-12-31 | N5: =Timing!N5 -> 2019-03-31
C6: =Timing!C6 -> Start Date | J6: =Timing!J6 -> 2018-02-25 | K6: =Timing!K6 -> 2018-04-01 | L6: =Timing!L6 -> 2018-07-01 | M6: =Timing!M6 -> 2018-10-01 | N6: =Timing!N6 -> 2019-01-01
C7: =Timing!C7 -> End Date | J7: =Timing!J7 -> 2018-03-31 | K7: =Timing!K7 -> 2018-06-30 | L7: =Timing!L7 -> 2018-09-30 | M7: =Timing!M7 -> 2018-12-31 | N7: =Timing!N7 -> 2019-03-31
C8: =Timing!C8 -> Number of Days | J8: =Timing!J8 -> 35 | K8: =Timing!K8 -> 91 | L8: =Timing!L8 -> 92 | M8: =Timing!M8 -> 92 | N8: =Timing!N8 -> 90
C9: =Timing!C9 -> Counter | J9: =Timing!J9 -> 1 | K9: =Timing!K9 -> 2 | L9: =Timing!L9 -> 3 | M9: =Timing!M9 -> 4 | N9: =Timing!N9 -> 5
B11: =MAX($B$10:$B10)+1 -> 1 | C11: =Revenues!C11 -> Revenues
C13: Summary Data
D15: International Sales
F17: =Revenues!F25 -> Guns | G17: =Revenues!G25 -> $'000 | J17: =Revenues!J25 -> 183 | K17: =Revenues!K25 -> 780 | L17: =Revenues!L25 -> 866 | M17: =Revenues!M25 -> 355 | N17: =Revenues!N25 -> 797
F18: =Revenues!F26 -> Drugs | G18: =Revenues!G26 -> $'000 | J18: =Revenues!J26 -> 685 | K18: =Revenues!K26 -> 131 | L18: =Revenues!L26 -> 998 | M18: =Revenues!M26 -> 203 | N18: =Revenues!N26 -> 333
F19: =Revenues!F27 -> Roses | G19: =Revenues!G27 -> $'000 | J19: =Revenues!J27 -> 514 | K19: =Revenues!K27 -> 452 | L19: =Revenues!L27 -> 368 | M19: =Revenues!M27 -> 897 | N19: =Revenues!N27 -> 418
G20: =Revenues!G28 -> $'000 | J20: =SUM(J17:J19) -> 1382 | K20: =SUM(K17:K19) -> 1363 | L20: 2232 | M20: 1455 | N20: 1548
B23: =MAX($B$10:$B22)+1 -> 2 | C23: =COGS!A1 -> COGS
C25: Summary Data
D27: Variable Costs
F29: =COGS!F69 -> Direct Materials | G29: =COGS!G69 -> $'000 | J29: =COGS!J69 -> 54 | K29: =COGS!K69 -> 560 | L29: =COGS!L69 -> 447 | M29: =COGS!M69 -> 434 | N29: =COGS!N69 -> 165
F30: =COGS!F70 -> Direct Labour | G30: =COGS!G70 -> $'000 | J30: =COGS!J70 -> 393 | K30: =COGS!K70 -> 457 | L30: =COGS!L70 -> 484 | M30: =COGS!M70 -> 329 | N30: =COGS!N70 -> 95
F31: =COGS!F71 -> Other | G31: =COGS!G71 -> $'000 | J31: =COGS!J71 -> 180 | K31: =COGS!K71 -> 471 | L31: =COGS!L71 -> 519 | M31: =COGS!M71 -> 430 | N31: =COGS!N71 -> 75
G32: =COGS!G72 -> $'000 | J32: =SUM(J29:J31) -> 627 | K32: =SUM(K29:K31) -> 1488 | L32: =SUM(L29:L31) -> 1450 | M32: =SUM(M29:M31) -> 1193 | N32: =SUM(N29:N31) -> 335
B35: =MAX($B$10:$B34)+1 -> 3 | C35: =Capex!A1 -> Capex
C37: Summary Data
D39: Capitalised Expenditure
F41: =Capex!F121 -> Office Furniture | G41: =Capex!G121 -> $'000 | J41: =Capex!J121 -> 549 | K41: =Capex!K121 -> 383 | L41: =Capex!L121 -> 596 | M41: =Capex!M121 -> 638 | N41: =Capex!N121 -> 655
F42: =Capex!F122 -> Laptops | G42: =Capex!G122 -> $'000 | J42: =Capex!J122 -> 556 | K42: =Capex!K122 -> 321 | L42: =Capex!L122 -> 434 | M42: =Capex!M122 -> 537 | N42: =Capex!N122 -> 248
F43: =Capex!F123 -> All Terrain Vehicles | G43: =Capex!G123 -> $'000 | J43: =Capex!J123 -> 299 | K43: =Capex!K123 -> 172 | L43: =Capex!L123 -> 537 | M43: =Capex!M123 -> 445 | N43: =Capex!N123 -> 558
F44: =Capex!F124 -> Bullet Proof Shielding | G44: =Capex!G124 -> $'000 | J44: =Capex!J124 -> 551 | K44: =Capex!K124 -> 143 | L44: =Capex!L124 -> 337 | M44: =Capex!M124 -> 189 | N44: =Capex!N124 -> 460
G45: =Capex!G125 -> $'000 | J45: =SUM(J41:J44) -> 1955 | K45: =SUM(K41:K44) -> 1019 | L45: =SUM(L41:L44) -> 1904 | M45: =SUM(M41:M44) -> 1809 | N45: =SUM(N41:N44) -> 1921

Sheet Export Sheet (2)
A1: =IF(ISERROR(RIGHT(CELL("filename",A1),LEN(CELL("filename",A1))-FIND("]",CELL("filename",A1)))), "", RIGHT(CELL("filename",A1),LEN(CELL("filename",A1))-FIND("]",CELL("filename",A1)))) -> Export Sheet (2)
A2: =Model_Name -> SP Example Export Model.xlsm
B4: Error Checks: | G4: =Overall_Error_Check -> 0
J5: =Timing!J5 -> 2018-03-31 | K5: =Timing!K5 -> 2018-06-30 | L5: =Timing!L5 -> 2018-09-30 | M5: =Timing!M5 -> 2018-12-31 | N5: =Timing!N5 -> 2019-03-31
C6: =Timing!C6 -> Start Date | J6: =Timing!J6 -> 2018-02-25 | K6: =Timing!K6 -> 2018-04-01 | L6: =Timing!L6 -> 2018-07-01 | M6: =Timing!M6 -> 2018-10-01 | N6: =Timing!N6 -> 2019-01-01
C7: =Timing!C7 -> End Date | J7: =Timing!J7 -> 2018-03-31 | K7: =Timing!K7 -> 2018-06-30 | L7: =Timing!L7 -> 2018-09-30 | M7: =Timing!M7 -> 2018-12-31 | N7: =Timing!N7 -> 2019-03-31
C8: =Timing!C8 -> Number of Days | J8: =Timing!J8 -> 35 | K8: =Timing!K8 -> 91 | L8: =Timing!L8 -> 92 | M8: =Timing!M8 -> 92 | N8: =Timing!N8 -> 90
C9: =Timing!C9 -> Counter | J9: =Timing!J9 -> 1 | K9: =Timing!K9 -> 2 | L9: =Timing!L9 -> 3 | M9: =Timing!M9 -> 4 | N9: =Timing!N9 -> 5
B11: =MAX($B$10:$B10)+1 -> 1 | C11: =Revenues!C11 -> Revenues
C13: Summary Data
D15: International Sales
F17: =Revenues!F25 -> Guns | G17: =Revenues!G25 -> $'000 | J17: =Revenues!J25 -> 183 | K17: =Revenues!K25 -> 780 | L17: =Revenues!L25 -> 866 | M17: =Revenues!M25 -> 355 | N17: =Revenues!N25 -> 797 | P17: =_xlfn.FORMULATEXT(J17) -> =Revenues!J25
F18: =Revenues!F26 -> Drugs | G18: =Revenues!G26 -> $'000 | J18: =Revenues!J26 -> 685 | K18: =Revenues!K26 -> 131 | L18: =Revenues!L26 -> 998 | M18: =Revenues!M26 -> 203 | N18: =Revenues!N26 -> 333 | P18: =_xlfn.FORMULATEXT(J18) -> =Revenues!J26
F19: =Revenues!F27 -> Roses | G19: =Revenues!G27 -> $'000 | J19: =Revenues!J27 -> 514 | K19: =Revenues!K27 -> 452 | L19: =Revenues!L27 -> 368 | M19: =Revenues!M27 -> 897 | N19: =Revenues!N27 -> 418 | P19: =Revenues!J27
G20: =Revenues!G28 -> $'000 | J20: =SUM(J17:J19) -> 1382 | K20: =SUM(K17:K19) -> 1363 | L20: 2232 | M20: 1455 | N20: 1548 | P20: =SUM(J17:J19)
B23: =MAX($B$10:$B22)+1 -> 2 | C23: =COGS!A1 -> COGS
C25: Summary Data
D27: Variable Costs
F29: =COGS!F69 -> Direct Materials | G29: =COGS!G69 -> $'000 | J29: =COGS!J69 -> 54 | K29: =COGS!K69 -> 560 | L29: =COGS!L69 -> 447 | M29: =COGS!M69 -> 434 | N29: =COGS!N69 -> 165 | P29: =_xlfn.FORMULATEXT(J29) -> =COGS!J69
F30: =COGS!F70 -> Direct Labour | G30: =COGS!G70 -> $'000 | J30: =COGS!J70 -> 393 | K30: =COGS!K70 -> 457 | L30: =COGS!L70 -> 484 | M30: =COGS!M70 -> 329 | N30: =COGS!N70 -> 95 | P30: =_xlfn.FORMULATEXT(J30) -> =COGS!J70
F31: =COGS!F71 -> Other | G31: =COGS!G71 -> $'000 | J31: =COGS!J71 -> 180 | K31: =COGS!K71 -> 471 | L31: =COGS!L71 -> 519 | M31: =COGS!M71 -> 430 | N31: =COGS!N71 -> 75 | P31: =COGS!J71
G32: =COGS!G72 -> $'000 | J32: =SUM(J29:J31) -> 627 | K32: =SUM(K29:K31) -> 1488 | L32: 1450 | M32: 1193 | N32: 335 | P32: =SUM(J29:J31)
B35: =MAX($B$10:$B34)+1 -> 3 | C35: =Capex!A1 -> Capex
C37: Summary Data
D39: Capitalised Expenditure
F41: =Capex!F121 -> Office Furniture | G41: =Capex!G121 -> $'000 | J41: =Capex!J121 -> 549 | K41: =Capex!K121 -> 383 | L41: =Capex!L121 -> 596 | M41: =Capex!M121 -> 638 | N41: =Capex!N121 -> 655 | P41: =_xlfn.FORMULATEXT(J41) -> =Capex!J121
F42: =Capex!F122 -> Laptops | G42: =Capex!G122 -> $'000 | J42: =Capex!J122 -> 556 | K42: =Capex!K122 -> 321 | L42: =Capex!L122 -> 434 | M42: =Capex!M122 -> 537 | N42: =Capex!N122 -> 248 | P42: =_xlfn.FORMULATEXT(J42) -> =Capex!J122
F43: =Capex!F123 -> All Terrain Vehicles | G43: =Capex!G123 -> $'000 | J43: =Capex!J123 -> 299 | K43: =Capex!K123 -> 172 | L43: =Capex!L123 -> 537 | M43: =Capex!M123 -> 445 | N43: =Capex!N123 -> 558 | P43: =_xlfn.FORMULATEXT(J43) -> =Capex!J123
F44: =Capex!F124 -> Bullet Proof Shielding | G44: =Capex!G124 -> $'000 | J44: =Capex!J124 -> 551 | K44: =Capex!K124 -> 143 | L44: =Capex!L124 -> 337 | M44: =Capex!M124 -> 189 | N44: =Capex!N124 -> 460 | P44: =Capex!J124
G45: =Capex!G125 -> $'000 | J45: =SUM(J41:J44) -> 1955 | K45: =SUM(K41:K44) -> 1019 | L45: 1904 | M45: 1809 | N45: 1921 | P45: =SUM(J41:J44)

Sheet Error Checks
A1: =IF(ISERROR(RIGHT(CELL("filename",A1),LEN(CELL("filename",A1))-FIND("]",CELL("filename",A1)))), "", RIGHT(CELL("filename",A1),LEN(CELL("filename",A1))-FIND("]",CELL("filename",A1)))) -> Error Checks
A2: =Model_Name -> SP Example Export Model.xlsm
A3: Navigator
B4: Error Checks: | F4: =Overall_Error_Check -> 0
B6: =MAX($B$5:$B5)+1 -> 1 | C6: Error Checks
C8: Summary of Errors
D10: Assumptions
E12: Example
E17: =C8 -> Summary of Errors | I17: =MIN(1,SUM(I11:I15)) -> 0

Sheet Template
A1: =IF(ISERROR(RIGHT(CELL("filename",A1),LEN(CELL("filename",A1))-FIND("]",CELL("filename",A1)))), "", RIGHT(CELL("filename",A1),LEN(CELL("filename",A1))-FIND("]",CELL("filename",A1)))) -> Template
A2: =Model_Name -> SP Example Export Model.xlsm
A3: Navigator
B4: Error Checks: | F4: =Overall_Error_Check -> 0
J5: =Timing!J5 -> 2018-03-31 | K5: =Timing!K5 -> 2018-06-30 | L5: =Timing!L5 -> 2018-09-30 | M5: =Timing!M5 -> 2018-12-31 | N5: =Timing!N5 -> 2019-03-31
C6: =Timing!C6 -> Start Date | J6: =Timing!J6 -> 2018-02-25 | K6: =Timing!K6 -> 2018-04-01 | L6: =Timing!L6 -> 2018-07-01 | M6: =Timing!M6 -> 2018-10-01 | N6: =Timing!N6 -> 2019-01-01
C7: =Timing!C7 -> End Date | J7: =Timing!J7 -> 2018-03-31 | K7: =Timing!K7 -> 2018-06-30 | L7: =Timing!L7 -> 2018-09-30 | M7: =Timing!M7 -> 2018-12-31 | N7: =Timing!N7 -> 2019-03-31
C8: =Timing!C8 -> Number of Days | J8: =Timing!J8 -> 35 | K8: =Timing!K8 -> 91 | L8: =Timing!L8 -> 92 | M8: =Timing!M8 -> 92 | N8: =Timing!N8 -> 90
C9: =Timing!C9 -> Counter | J9: =Timing!J9 -> 1 | K9: =Timing!K9 -> 2 | L9: =Timing!L9 -> 3 | M9: =Timing!M9 -> 4 | N9: =Timing!N9 -> 5
B11: =MAX($B$10:$B10)+1 -> 1 | C11: =A1 -> Template
C13: Heading
D15: Sub Heading

Sheet Change Log
A1: =IF(ISERROR(RIGHT(CELL("filename",A1),LEN(CELL("filename",A1))-FIND("]",CELL("filename",A1)))), "", RIGHT(CELL("filename",A1),LEN(CELL("filename",A1))-FIND("]",CELL("filename",A1)))) -> Change Log
A2: =Model_Name -> SP Example Export Model.xlsm
A3: Navigator
B4: Error Checks: | F4: =Overall_Error_Check -> 0
B6: =MAX($B$5:$B5)+1 -> 1 | C6: =A1 -> Change Log
C8: Summary
F10: Date | G10: Model Version | H10: Details of change | I10: Worksheet Reference | J10: Row, column, cell reference | K10: Author
F11: 2013-05-21 | G11: Untitled attachment 00059.xlsm | H11: I changed it | I11: Change Log | J11: F11 | K11: LB
F12: 2013-05-21 | G12: Untitled attachment 00059.xlsm | H12: So did I. | I12: Timing | J12: A4 | K12: LB
F13: 2013-05-21 | G13: Untitled attachment 00059.xlsm | H13: And me. | I13: Navigator | J13: B9 | K13: Dave
